fUSD/lending_fUSD_20251213
["ID","MTS","AMOUNT","RATE_DAILY","PERIOD"]
[398418666,1765631431959,-293.26528226,0.00015999,2]
[398418668,1765631431969,-193.09234051,0.00015999,2]
[398418670,1765631431978,-389.5316508,0.00016,2]
[398418672,1765631431991,-752.7818492,0.00016,2]
[398418674,1765631432001,-628.2585,0.00016,2]
[398418676,1765631432011,-1073.6966,0.00016,2]
[398418677,1765631432021,-4332.08871631,0.00016,2]
[398418679,1765631432031,-639.8382,0.00016,2]
[398418681,1765631432040,-441.29881623,0.00016,2]
[398418683,1765631432049,-5551.00664102,0.00016,2]
[398418685,1765631432059,-368312.43566107,0.00016,2]
[398418687,1765631432070,-11476.05167585,0.00016,2]
[398418703,1765631438875,-217.43792378,0.00015999,2]
[398418704,1765631438885,-500.0,0.00015999,2]
[398418705,1765631438895,-297.07949088,0.00015999,2]
[398418706,1765631438905,-500.0,0.00015999,2]
[398418707,1765631438915,-500.0,0.00015999,2]
[398418708,1765631438926,-500.0,0.00015999,2]
[398418709,1765631438936,-287.6274208,0.00015999,2]
[398418710,1765631438947,-212.3725792,0.00015999,2]
[398418711,1765631438957,-500.0,0.00015999,2]
[398418712,1765631438967,-314.63369713,0.00015999,2]
[398418713,1765631438990,-185.36630287,0.00015999,2]
[398418714,1765631439000,-500.0,0.00015999,2]
[398418715,1765631439011,-314.63369713,0.00015999,2]
[398418716,1765631439026,-185.36630287,0.00015999,2]
[398418717,1765631439037,-500.0,0.00015999,2]
[398418718,1765631439047,-368.15252954,0.00015999,2]
[398418719,1765631439065,-232.05579093,0.00015999,2]
[398418720,1765631439077,-187.01920907,0.00015999,2]
[398418721,1765631439090,-312.98079093,0.00015999,2]
[398418722,1765631439100,-500.0,0.00015999,2]
[398418723,1765631439110,-500.0,0.00015999,2]
[398418724,1765631439119,-500.0,0.00015999,2]
[398418725,1765631439128,-500.0,0.00015999,2]
[398418726,1765631439137,-500.0,0.00015999,2]
[398418727,1765631439147,-500.0,0.00015999,2]
[398418728,1765631439156,-219238.58932127,0.00016,2]
[398418729,1765631439168,-4469.34245051,0.00016,2]
[398418730,1765631439743,-7369.62026777,0.00016,2]
[398418733,1765631439798,-4233.23829651,0.00016,2]
[398418734,1765631439856,-144900.72232702,0.00016,2]
[398418735,1765631439866,-523.5449,0.00016,2]
[398418736,1765631439875,-150.0,0.00016043,2]
[398418737,1765631439885,-254.34,0.00016075,3]
[398418738,1765631439894,-166.66,0.00016089,2]
[398418739,1765631439903,-403.62475427,0.0001609,2]
[398418740,1765631439913,-1000.0,0.0001609,2]
[398418741,1765631439923,-1000.0,0.0001609,2]
[398418742,1765631439931,-1000.0,0.0001609,2]
[398418743,1765631439942,-1000.0,0.0001609,2]
[398418744,1765631439951,-1000.0,0.0001609,2]
[398418745,1765631439961,-500.0,0.0001609,2]
[398418746,1765631439970,-151.0,0.0001609,2]
[398418747,1765631439980,-151.0,0.0001609,2]
[398418748,1765631439989,-1000.0,0.0001609,2]
[398418749,1765631439999,-1000.0,0.0001609,2]
[398418750,1765631440009,-332.07048365,0.0001609,2]
[398418751,1765631440022,-613.91086761,0.0001609,2]
[398418752,1765631440031,-500.0,0.0001609,2]
[398418753,1765631440041,-509.33088401,0.0001609,2]
[398418754,1765631440051,-215.59074017,0.0001609,2]
[398418755,1765631440060,-437.51777015,0.0001609,2]
[398418756,1765631440070,-555.0,0.0001609,2]
[398418757,1765631440079,-300.0,0.0001609,2]
[398418758,1765631440089,-151.0,0.0001609,2]
[398418759,1765631440098,-151.0,0.00016097,2]
[398418760,1765631440109,-985.877,0.00016099,2]
[398418761,1765631440120,-3058.8600131,0.00016099,2]
[398418762,1765631440129,-682.08,0.00016099,2]
[398418763,1765631440139,-1000.0,0.000161,2]
[398418764,1765631440148,-150.0,0.00016137,2]
[398418765,1765631440158,-150.0,0.00016137,2]
[398418766,1765631440168,-150.0,0.00016137,2]
[398418767,1765631440177,-150.0,0.00016137,2]
[398418768,1765631440187,-555.0,0.00016145,2]
[398418769,1765631440196,-4332.08871624,0.0001619,2]
[398418770,1765631440206,-5551.00664096,0.0001619,2]
[398418771,1765631440215,-500.0,0.00016199,2]
[398418772,1765631440225,-500.0,0.00016199,2]
[398418773,1765631440235,-555.0,0.000162,2]
[398418774,1765631440244,-150.0,0.00016231,2]
[398418775,1765631440254,-166.34,0.00016239,2]
[398418776,1765631440264,-555.0,0.00016255,2]
[398418777,1765631440273,-441.29881618,0.00016271,2]
[398418778,1765631440283,-555.0,0.0001631,2]
[398418779,1765631440292,-555.0,0.00016365,2]
[398418780,1765631440302,-682.08,0.00016373,2]
[398418781,1765631440312,-4332.08871624,0.0001638,2]
[398418782,1765631440322,-5551.00664096,0.0001638,2]
[398418783,1765631440332,-166.66,0.00016401,2]
[398418784,1765631440342,-150.0,0.0001642,2]
[398418785,1765631440351,-150.0,0.0001642,2]
[398418786,1765631440361,-150.0,0.0001642,2]
[398418787,1765631440371,-150.0,0.0001642,2]
[398418788,1765631440380,-573.4408021,0.0001642,2]
[398418789,1765631440390,-154.35668791,0.00016438,2]
[398418790,1765631440400,-441.29881618,0.00016543,2]
[398418791,1765631440410,-523.0,0.00016544,2]
[398418792,1765631440419,-150.0,0.00016562,2]
[398418793,1765631440428,-150.0,0.00016562,2]
[398418794,1765631440438,-4332.08871624,0.00016569,2]
[398418795,1765631440447,-116.71311262,0.00016569,2]
[398418796,1765631440475,-5434.29352834,0.00016569,2]
[398418797,1765631440485,-523.0,0.00016606,2]
[398418798,1765631440494,-150.0,0.00016609,2]
[398418799,1765631440504,-284.78783801,0.00016638,2]
[398418800,1765631440513,-151.6766623,0.00016638,2]
[398418801,1765631440523,-682.08,0.00016647,2]
[398418802,1765631440532,-523.0,0.00016651,2]
[398418803,1765631440541,-523.0,0.00016657,2]
[398418804,1765631440550,-1071.6442166,0.0001666,2]
[398418805,1765631440559,-1020.05468061,0.0001666,2]
[398418806,1765631440569,-689.53289009,0.0001666,2]
[398418807,1765631440581,-312.08611867,0.0001666,2]
[398418808,1765631440590,-927.35058122,0.0001666,2]
[398418809,1765631440602,-187.32892985,0.0001666,2]
[398418810,1765631440611,-1041.28473172,0.0001666,2]
[398418811,1765631440620,-1103.39041756,0.0001666,2]
[398418812,1765631440630,-1123.19197729,0.0001666,2]
[398418813,1765631440639,-1026.24317314,0.0001666,2]
[398418814,1765631440649,-1081.18039515,0.0001666,2]
[398418815,1765631440658,-1054.53180295,0.0001666,2]
[398418816,1765631440668,-1000.76350775,0.0001666,2]
[398418817,1765631440677,-422.58064185,0.0001666,2]
[398418818,1765631441464,-1.7e-07,0.0001666,2]
[398418819,1765631441476,-640.14932665,0.0001666,2]
[398418820,1765631441486,-1018.75001548,0.0001666,2]
[398418821,1765631441496,-601.63065787,0.0001666,2]
[398418822,1765631441507,-449.71566464,0.0001666,2]
[398418823,1765631441517,-376.56493354,0.0001666,2]
[398418827,1765631442762,-730.73533871,0.0001666,2]
[398418828,1765631442772,-4.51074916,0.0001666,2]
[398418829,1765631442783,-1104.14310045,0.0001666,2]
[398418830,1765631442792,-1112.20772278,0.0001666,2]
[398418831,1765631442802,-1132.71848452,0.0001666,2]
[398418832,1765631442812,-1026.75588301,0.0001666,2]
[398418833,1765631442821,-1017.71038602,0.0001666,2]
[398418834,1765631442831,-1016.40618867,0.0001666,2]
[398418835,1765631442840,-1067.68461415,0.0001666,2]
[398418836,1765631442849,-1010.59573509,0.0001666,2]
[398418837,1765631442859,-1668.22799685,0.0001666,2]
[398418838,1765631442868,-3528.3360243,0.00016702,2]
[398418839,1765631442878,-418.6847059,0.00016702,2]
[398418840,1765631442888,-150.0,0.00016703,2]
[398418841,1765631442897,-523.0,0.00016707,2]
[398418842,1765631442907,-168.27,0.00016712,2]
[398418843,1765631442916,-500.0,0.00016718,2]
[398418844,1765631442926,-150.0,0.00016718,2]
[398418845,1765631442936,-767.0,0.00016718,2]
[398418846,1765631442945,-523.0,0.00016733,2]
[398418847,1765631442953,-4332.08871624,0.00016759,2]
[398418848,1765631442962,-5551.00664096,0.00016759,2]
[398418849,1765631442971,-150.0,0.00016798,2]
[398418850,1765631442980,-441.29881618,0.00016814,2]
[398418851,1765631442989,-1631.73232,0.0001683,2]
[398418852,1765631443000,-500.0,0.00016855,2]
[398418853,1765631443011,-150.0,0.00016855,2]
[398418854,1765631443028,-767.0,0.00016855,2]
[398418855,1765631443037,-523.0,0.00016886,2]
[398418856,1765631443047,-171.89448138,0.00016899,2]
[398418857,1765631443056,-165.32422004,0.000169,2]
[398418858,1765631443066,-166.34,0.00016909,2]
[398418859,1765631443075,-869.8260447,0.00016909,2]
[398418860,1765631443084,-682.08,0.00016921,2]
[398418861,1765631443092,-4332.08871624,0.00016949,2]
[398418862,1765631443101,-5551.00664096,0.00016949,2]
[398418863,1765631443110,-500.0,0.00016973,2]
[398418864,1765631443119,-500.0,0.00016973,2]
[398418865,1765631443129,-500.0,0.00016973,2]
[398418866,1765631443138,-620.67573841,0.00016973,2]
[398418867,1765631443147,-523.0,0.00016985,2]
[398418868,1765631443156,-150.0,0.00016986,2]
[398418869,1765631443164,-150.0,0.00016986,2]
[398418870,1765631443174,-150.0,0.00016986,2]
[398418871,1765631443183,-150.0,0.00016986,2]
[398418872,1765631443192,-150.0,0.00016986,2]
[398418873,1765631443201,-150.0,0.00016986,2]
[398418874,1765631443210,-150.0,0.00016986,2]
[398418875,1765631443219,-249.7903514,0.00016988,2]
[398418876,1765631443228,-150.90497391,0.0001699,2]
[398418877,1765631443238,-150.90497391,0.0001699,2]
[398418878,1765631443247,-500.0,0.00016992,2]
[398418879,1765631443255,-250.0,0.00016992,2]
[398418880,1765631443264,-767.0,0.00016992,2]
[398418881,1765631443273,-4238.0,0.00016997,2]
[398418882,1765631443281,-196745.07958787,0.00016997,2]
[398418883,1765631443293,-619.94646908,0.00016997,2]
[398418884,1765631443314,-1137.79536712,0.00016997,2]
[398418886,1765631443329,-4493.90578501,0.00016997,2]
[398418887,1765631443340,-2979.06507186,0.00016997,2]
[398418889,1765631443365,-1988.8604776,0.00016997,2]
[398418891,1765631445681,-3607.02658723,0.00016997,2]
[398418892,1765631445693,-1302.81154843,0.00016997,2]
[398418893,1765631445704,-649.63247821,0.00016999,2]
[398418894,1765631445713,-150.0,0.00016999,2]
[398418895,1765631445723,-196471.98702091,0.00017,2]
[398418896,1765631445784,-271.0542,0.00017,2]
[398418897,1765631445795,-57761.34986184,0.00017,2]
[398418898,1765631445891,-466.81370507,0.00017,2]
[398418899,1765631445902,-2160.37962884,0.00017,2]
[398418900,1765631445947,-1419.23571967,0.00017,2]
[398418901,1765631445959,-23916.42488506,0.00017,2]
[398418905,1765631824177,-495.04573754,0.00015701,2]
[398418906,1765631829681,-347.01118975,0.00015701,2]
[398418907,1765631832947,-195.0,0.00015701,2]
[398418908,1765631836354,-290.41355801,0.00015701,2]
[398418909,1765631839816,-300.0,0.00015701,2]
[398418910,1765631841264,-195.0,0.00015701,2]
[398418911,1765631844380,-275.2830713,0.00015701,2]
[398418912,1765631846810,-237.86045014,0.00015701,2]
[398418913,1765631851019,-216.55474762,0.00015701,2]
[398418914,1765631853454,-233.40484118,0.00015701,2]
[398418915,1765631855476,-817.2076677,0.00015701,2]
[398418916,1765631859559,-169.809,0.00015701,2]
[398418917,1765632017381,500.0,0.00015144,2]
[398418918,1765632032458,-210.48003498,0.00015414,2]
[398418919,1765632035911,-290.43571445,0.00015414,2]
[398418920,1765632038979,-191.50851759,0.00015414,2]
[398418921,1765632040378,-339.924948,0.00015414,2]
[398418922,1765632043729,-198.11046551,0.00015414,2]
[398418923,1765632046954,-277.85258595,0.00015414,2]
[398418924,1765632049178,-243.05290548,0.00015414,2]
[398418925,1765632052683,-153.60720428,0.00015414,2]
[398418926,1765632054694,-155.44550103,0.00015414,2]
[398418927,1765632056607,-200.82311489,0.00015414,2]
[398418928,1765632060572,-324.70718944,0.00015414,2]
[398418929,1765632062573,-209.45802828,0.00015413,2]
[398418930,1765632066364,-90.54197172,0.00015413,2]
[398418931,1765632066387,-73.57779918,0.00015414,2]
[398418932,1765632067987,-391.3263215,0.00015414,2]
[398418933,1765632070530,-258.14007396,0.00015414,2]
[398418934,1765632072073,-195.0,0.00015414,2]
[398418935,1765632073524,-198.06934917,0.00015414,2]
[398418936,1765632075978,-302.22212893,0.00015414,2]
[398418937,1765632081283,-184.55686546,0.00015414,2]
[398418938,1765632084391,-297.17431731,0.00015414,2]
[398418939,1765632085895,-272.56316522,0.00015414,2]
[398418940,1765632087879,-264.29876722,0.00015414,2]
[398418941,1765632092731,-180.71246424,0.00015414,2]
[398418942,1765632094747,-312.60908079,0.00015414,2]
[398418943,1765632096761,-286.95132209,0.00015414,2]
[398418944,1765632101125,-165.79204585,0.00015414,2]
[398418945,1765632102626,-324.09850714,0.00015414,2]
[398418946,1765632104627,-194.22691847,0.00015414,2]
[398418947,1765632105869,258.51,0.00015281,2]
[398418948,1765632108544,-236.27057954,0.00015414,2]
[398418949,1765632110636,-250.90049152,0.00015414,2]
[398418950,1765632112112,-402.74111737,0.00015414,2]
[398418951,1765632117101,-219.21769339,0.00015414,2]
[398418952,1765632119133,-231.15133319,0.00015414,2]
[398418953,1765632124657,-208.46523192,0.00015414,2]
[398418954,1765632125965,-384.03340444,0.00015414,2]
[398418955,1765632128204,-232.01296446,0.00015414,2]
[398418956,1765632132043,-168.0,0.00015414,2]
[398418957,1765632134016,-165.58575347,0.00015414,2]
[398418958,1765632135996,-252.57997132,0.00015414,2]
[398418959,1765632137411,-352.8031918,0.00015414,2]
[398418960,1765632140385,-233.50921345,0.00015414,2]
[398418961,1765632142345,-290.68541453,0.00015414,2]
[398418962,1765632144213,-192.8403542,0.00015414,2]
[398418963,1765632146638,-216.38189013,0.00015414,2]
[398418964,1765632148161,-299.59210702,0.00015414,2]
[398418965,1765632151759,-199.41623545,0.00015414,2]
[398418966,1765632154704,-264.42171773,0.00015414,2]
[398418967,1765632156772,-365.16204682,0.00015414,2]
[398418968,1765632157958,200.0,0.00015151,2]
[398418969,1765632158676,-156.3159642,0.00015414,2]
[398418970,1765632161778,-429.41138896,0.00015414,2]
[398418971,1765632165898,-283.06120495,0.00015414,2]
[398418972,1765632169833,770.968917,0.00015336,2]
[398418973,1765632169947,-305.64421677,0.00015414,2]
[398418974,1765632198066,-177.92078557,0.00015414,2]
[398418975,1765632242490,-45.76841967,0.00015414,2]
[398418976,1765632242513,-195.0,0.00015512,2]
[398418977,1765632242542,-5.70599126,0.00015609,2]
[398418978,1765632244068,-159.66281333,0.00015609,2]
[398418979,1765632257442,-300.0,0.00015418,2]
[398418980,1765632259805,-300.0,0.00015418,2]
[398418981,1765632263974,-282.1774,0.00015418,2]
[398418982,1765632267472,-419.71676248,0.00015418,2]
[398418983,1765632271711,-302.97834523,0.00015418,2]
[398418984,1765632277656,-255.54462851,0.00015418,2]
[398418985,1765632279130,-209.7413926,0.00015418,2]
[398418986,1765632284363,-478.97381787,0.00015418,2]
[398418987,1765632286351,-286.60689706,0.00015418,2]
[398418988,1765632288304,-153.72454986,0.00015418,2]
[398418989,1765632289720,-250.0,0.00015418,2]
[398418990,1765632292757,-255.62028926,0.00015418,2]
[398418991,1765632294182,-172.99134662,0.00015418,2]
[398418992,1765632299660,-327.00865338,0.00015418,2]
[398418993,1765632301089,-781.62191169,0.00015418,2]
[398418994,1765632302960,-300.0,0.00015417,2]
[398418995,1765632302983,-19.60613753,0.00015417,2]
[398418996,1765632304438,150.0,0.00015288,2]
[398418997,1765632305482,-239.1193337,0.00015417,2]
[398418998,1765632308606,150.0,0.00015288,2]
[398418999,1765632308678,-478.62704075,0.00015417,2]
[398419000,1765632310882,-207.2151951,0.00015417,2]
[398419001,1765632314012,-158.43239575,0.00015417,2]
[398419002,1765632314318,150.0,0.00015288,2]
[398419003,1765632316072,-96.99989717,0.00015417,2]
[398419004,1765632316097,-135.50457474,0.00015417,2]
[398419005,1765632319623,-164.49542526,0.00015417,2]
[398419006,1765632319647,-118.23016558,0.00015418,2]
[398419007,1765632321602,-370.5641563,0.00015418,2]
[398419008,1765632324121,-195.0,0.00015418,2]
[398419009,1765632325511,-214.75808814,0.00015418,2]
[398419010,1765632327176,282.1774,0.00015314,2]
[398419011,1765632328634,150.0,0.00015288,2]
[398419012,1765632328854,-164.82065278,0.00015418,2]
[398419013,1765632333163,-164.75808814,0.00015418,2]
[398419014,1765632335662,-152.05522626,0.00015418,2]
[398419015,1765632337730,-220.99585294,0.00015418,2]
[398419016,1765632339184,-300.0,0.00015418,2]
[398419017,1765632341945,-503.72976873,0.00015418,2]
[398419018,1765632344406,-280.39407579,0.00015418,2]
[398419019,1765632348647,-325.96215171,0.00015418,2]
[398419020,1765632350706,-269.84571679,0.00015418,2]
[398419021,1765632353287,-325.38114695,0.00015418,2]
[398419022,1765632357136,-282.48557006,0.00015418,2]
[398419023,1765632358978,-153.71182467,0.00015418,2]
[398419024,1765632365820,-171.75976707,0.00015418,2]
[398419025,1765632367427,-211.0895498,0.00015418,2]
[398419026,1765632369439,-429.0,0.00015418,2]
[398419027,1765632372111,-253.62,0.00015418,2]
[398419028,1765632374603,-250.0,0.00015418,2]
[398419029,1765632376518,-259.44261351,0.00015418,2]
[398419030,1765632380492,-291.69084008,0.00015418,2]
[398419031,1765632382474,-230.76373537,0.00015418,2]
[398419032,1765632383876,-218.26628836,0.00015418,2]
[398419033,1765632385881,-280.0,0.00015418,2]
[398419034,1765632388880,-300.0,0.00015418,2]
[398419035,1765632390826,-258.51304343,0.00015418,2]
[398419037,1765632393930,-266.77262838,0.00015418,2]
[398419038,1765632399072,-172.96516829,0.00015418,2]
[398419039,1765632399493,880.54063075,0.0002,30]
[398419040,1765632400129,-300.65844906,0.00015418,2]
[398419041,1765632403161,-210.0,0.00015418,2]
[398419042,1765632405224,-277.05453468,0.00015418,2]
[398419043,1765632407776,-207.21519527,0.00015418,2]
[398419044,1765632412607,-223.73662508,0.00015418,2]
[398419045,1765632414542,-195.0,0.00015418,2]
[398419046,1765632416087,-285.29772416,0.00015418,2]
[398419047,1765632419164,-436.44816094,0.00015418,2]
[398419048,1765632422204,-300.0,0.00015417,2]
[398419049,1765632422228,-24.73233007,0.00015418,2]
[398419051,1765632425198,-248.07545574,0.00015418,2]
[398419052,1765632429511,-164.43452009,0.00015418,2]
[398419054,1765632431405,-210.30187148,0.00015418,2]
[398419060,1765632434494,-187.87667047,0.00015418,2]
[398419061,1765632438342,-333.92487446,0.00015418,2]
[398419062,1765632440236,-172.67533188,0.00015418,2]
[398419063,1765632441978,-161.34057654,0.00015418,2]
[398419064,1765632444485,-314.91862603,0.00015418,2]
[398419065,1765632445649,-450.6650232,0.00015418,2]
[398419066,1765632447673,-258.30466272,0.00015418,2]
[398419067,1765632449267,-162.9775647,0.00015418,2]
[398419068,1765632451565,-10000.01,0.00015418,2]
[398419069,1765632451755,-10000.01,0.00015418,2]
[398419070,1765632451985,-1598.02820226,0.00015418,2]
[398419071,1765632452009,-6803.95359548,0.00015418,2]
[398419072,1765632452216,-543.8271632,0.00015418,2]
[398419073,1765632453665,-250.0,0.00015426,2]
[398419074,1765632453690,-31.38617894,0.00015434,2]
[398419077,1765632466800,-218.61382106,0.00015434,2]
[398419078,1765632466828,-195.0,0.00015655,2]
[398419079,1765632466858,-300.0,0.00015655,2]
[398419080,1765632466891,-1000.0,0.000157,2]
[398419081,1765632466972,-6572.78235788,0.00015701,2]
[398419082,1765632467046,-214.36737888,0.00015701,2]
[398419083,1765632467075,-195.0,0.00015708,2]
[398419084,1765632467104,-150.0,0.00015741,2]
[398419085,1765632467133,-1200.0,0.00015892,2]
[398419086,1765632467563,-300.0,0.00015892,2]
[398419087,1765632467592,-200.0,0.00015893,2]
[398419088,1765632467625,-207.4,0.00015893,2]
[398419089,1765632467652,-215.0738,0.00015893,2]
[398419090,1765632467683,-223.0315306,0.00015893,2]
[398419091,1765632467710,-231.28369723,0.00015893,2]
[398419092,1765632467739,-239.84119403,0.00015893,2]
[398419093,1765632467766,-248.71531821,0.00015893,2]
[398419094,1765632467793,-257.91778498,0.00015893,2]
[398419095,1765632467822,-267.46074303,0.00015893,2]
[398419096,1765632467850,-300.0,0.00015893,2]
[398419097,1765632467879,-544.82710608,0.00015893,2]
[398419098,1765632467977,-10.17289392,0.00015893,2]
[398419099,1765632468005,-578.20924308,0.00015893,2]
[398419100,1765632468034,-1954.48397137,0.000159,2]
[398419101,1765632468062,-384.0319,0.000159,2]
[398419102,1765632468092,-168.9702,0.000159,2]
[398419103,1765632468133,-163.27858326,0.000159,2]
[398419104,1765632468192,-3481.71641674,0.000159,2]
[398419105,1765632468223,-555.0,0.00015948,2]
[398419106,1765632468257,-500.0,0.00015989,2]
[398419107,1765632468293,-426.57716652,0.00015989,2]
[398419108,1765632468337,-73.42283348,0.00015989,2]
[398419109,1765632468371,-500.0,0.00015989,2]
[398419110,1765632468404,-247.97352972,0.00015989,2]
[398419111,1765632468434,-500.0,0.00015989,2]
[398419112,1765632468464,-293.12285749,0.00015989,2]
[398419113,1765632468493,-496.01581523,0.0001599,2]
[398419114,1765632468528,-151.0,0.0001599,2]
[398419115,1765632468559,-1000.0,0.0001599,2]
[398419116,1765632468591,-1000.0,0.0001599,2]
[398419117,1765632468625,-476.93992816,0.0001599,2]
[398419118,1765632468666,-523.06007184,0.0001599,2]
[398419119,1765632468699,-1000.0,0.0001599,2]
[398419120,1765632468731,-1000.0,0.0001599,2]
[398419121,1765632468762,-500.0,0.0001599,2]
[398419122,1765632468793,-151.0,0.00015997,2]
[398419123,1765632468823,-153.0,0.00015997,2]
[398419124,1765632468852,-150.83,0.00015997,2]
[398419125,1765632468881,-150.04,0.00015999,2]
[398419126,1765632468915,-151.14,0.00015999,2]
[398419127,1765632468945,-152.67,0.00015999,2]
[398419128,1765632468978,-500.0,0.00015999,2]
[398419129,1765632469009,-150.81,0.00016,2]
[398419130,1765632470001,-28.88221598,0.00016,2]
[398419131,1765632470016,-1000.0,0.00016,2]
[398419132,1765632470030,-1000.0,0.00016,2]
[398419133,1765632470044,-500.0,0.00016,2]
[398419134,1765632470059,-151.0,0.00016,2]
[398419135,1765632470074,-153.0,0.00016,2]
[398419136,1765632470088,-150.83,0.00016,2]
[398419137,1765632470103,-150.04,0.00016,2]
[398419138,1765632470123,-151.14,0.00016,2]
[398419139,1765632470137,-152.67,0.00016,2]
[398419140,1765632470152,-500.0,0.00016,2]
[398419141,1765632470167,-150.81,0.00016,2]
[398419142,1765632470183,-834.90985632,0.00016,2]
[398419143,1765632470198,-10000.01,0.00016,2]
[398419144,1765632470287,-217.00737273,0.0001589,2]
[398419145,1765632470676,-9783.00262727,0.00016,2]
[398419146,1765632470692,-217.00737273,0.00016,2]
[398419147,1765632470707,-9565.99525454,0.00016,2]
[398419148,1765632470721,-10000.01,0.00016,2]
[398419149,1765632470736,-10000.01,0.00016,2]
[398419150,1765632471392,-353.94230344,0.00016,2]
[398419151,1765632475762,-10000.01,0.00016,2]
[398419152,1765632475870,-10000.01,0.00016,2]
[398419153,1765632475980,-10000.01,0.00016,2]
[398419154,1765632484846,-495.265451,0.0001592,2]
[398419155,1765632484876,-1200.0,0.00015999,2]
[398419156,1765632484929,-6609.479098,0.00016,2]
[398419157,1765632484961,-10000.01,0.00016,2]
[398419158,1765632485097,-10000.01,0.00016,2]
[398419159,1765632488890,-430.00721562,0.00015999,2]
[398419160,1765632489008,-9139.99556876,0.00016,2]
[398419161,1765632489023,-10000.01,0.00016,2]
[398419162,1765632489037,-10000.01,0.00016,2]
[398419163,1765632489051,-10000.01,0.00016,2]
[398419164,1765632489073,-2268.04127435,0.000159,2]
[398419165,1765632489083,-7731.96872565,0.00016,2]
[398419166,1765632490926,-195.0,0.00016,2]
[398419167,1765632490962,-9610.01,0.00016,2]
[398419168,1765632493942,-10000.01,0.00016,2]
[398419169,1765632494104,-10000.01,0.00016,2]
[398419170,1765632494224,-10000.01,0.00016,2]
[398419171,1765632494346,-10000.01,0.00016,2]
[398419172,1765632494481,-10000.01,0.00016,2]
[398419173,1765632494597,-10000.01,0.00016,2]
[398419174,1765632500116,389.96136724,7.888e-05,2]
[398419175,1765632500435,220.64940809,0.000159,2]
[398419176,1765632502521,-180.16924006,0.00015999,2]
[398419177,1765632508153,5460.4141,0.000159,2]
[398419178,1765632508967,327.76056727,0.000159,2]
[398419181,1765632542814,-2226.72918418,0.00015807,2]
[398419182,1765632542856,-195.0,0.00015825,2]
[398419183,1765632542886,-1239.27,0.00015844,2]
[398419184,1765632543086,-6669.19755628,0.000159,2]
[398419185,1765632543187,-10000.01,0.000159,2]
[398419186,1765632546342,-10000.01,0.000159,2]
[398419187,1765632551962,-10000.01,0.000159,2]
[398419188,1765632552078,-10000.01,0.000159,2]
[398419189,1765632568919,-441.652156,0.0001582,2]
[398419190,1765632568945,-24558.347844,0.000159,2]
[398419191,1765632570760,-25000.0,0.000159,2]
[398419192,1765632571644,-25000.0,0.000159,2]
[398419193,1765632572530,-25000.0,0.000159,2]
[398419194,1765632573161,-25000.0,0.000159,2]
[398419195,1765632573698,-25000.0,0.000159,2]
[398419196,1765632573937,-25000.0,0.000159,2]
[398419197,1765632574934,-25000.0,0.000159,2]
[398419198,1765632576218,-25000.0,0.000159,2]
[398419199,1765632576271,-25000.0,0.000159,2]
[398419200,1765632577294,-25000.0,0.000159,2]
[398419201,1765632578104,-25000.0,0.000159,2]
[398419202,1765632580195,-25000.0,0.000159,2]
[398419203,1765632580279,-25000.0,0.000159,2]
[398419204,1765632580398,-25000.0,0.000159,2]
[398419205,1765632581216,-343.84430181,0.000159,2]
[398419206,1765632581379,-25000.0,0.000159,2]
[398419207,1765632582031,-25000.0,0.000159,2]
[398419208,1765632583185,-25000.0,0.000159,2]
[398419209,1765632583510,-25000.0,0.000159,2]
[398419210,1765632584161,-25000.0,0.000159,2]
[398419211,1765632585253,-25000.0,0.000159,2]
[398419212,1765632585527,-25000.0,0.000159,2]
[398419213,1765632586303,-25000.0,0.000159,2]